bitfinex/quotes_SOLUSD_20260120
["timestamp","ask_amount","ask_price","bid_price","bid_amount"]
[1768893980683,4.17954403,131.43,131.39,4.21827487]
[1768893980884,7.73832629,131.43,131.39,4.21827487]
[1768893981082,20.85954403,131.44,131.4,4.21827487]
[1768893981281,16.68,131.44,131.41,4.21827487]
[1768893981696,4.17954403,131.46,131.42,4.21827487]
[1768893983988,4.41043789,131.45,131.42,4.21827487]
[1768893987896,4.41043789,131.42,131.39,11.71263404]
[1768893988086,3.55878226,131.44,131.41,4.10201029]
[1768893988291,7.96922015,131.45,131.41,4.10201029]
[1768893988896,3.55878226,131.44,131.41,4.10201029]
[1768893989795,3.55878226,131.44,131.4,4.10201029]
[1768893989998,7.96922015,131.43,131.4,4.10201029]
[1768893990481,3.55878226,131.42,131.4,4.10201029]
[1768893990681,7.96922015,131.43,131.4,4.10201029]
[1768893992106,4.41043789,131.42,131.39,4.10201029]
[1768893994904,24.64922015,131.44,131.4,4.10201029]
[1768893995401,4.41043789,131.43,131.4,4.10201029]
[1768893996710,16.68,131.44,131.41,4.10201029]
[1768893997010,21.09043789,131.44,131.41,4.10201029]
[1768893998400,16.68,131.44,131.41,4.10201029]
[1768893998604,4.41043789,131.45,131.41,4.10201029]
[1768894000693,4.41043789,131.44,131.41,4.10201029]
[1768894006411,3.55878226,131.45,131.41,4.10201029]
[1768894006624,7.92578247,131.45,131.41,4.10201029]
[1768894006996,4.36700021,131.44,131.41,4.10201029]
[1768894007810,3.56067534,131.45,131.41,4.10201029]
[1768894008020,7.92767555,131.45,131.41,4.10201029]
[1768894008313,4.36700021,131.45,131.41,4.10201029]
[1768894008510,4.36700021,131.5,131.45,4.09028418]
[1768894008712,4.36700021,131.49,131.45,7.65095952]
[1768894010808,4.36700021,131.49,131.45,4.09028418]
[1768894012819,4.36700021,131.47,131.44,4.09028418]
[1768894013116,7.92891261,131.48,131.45,4.3825389]
[1768894013318,4.36823727,131.48,131.45,4.3825389]
[1768894018408,4.36823727,131.47,131.44,4.3825389]
[1768894018613,4.36823727,131.46,131.43,4.3825389]
[1768894027726,21.04823727,131.48,131.45,4.3825389]
[1768894031026,24.60891261,131.48,131.45,4.3825389]
[1768894031832,4.36823727,131.47,131.44,4.3825389]
[1768894032632,7.92891261,131.47,131.44,4.3825389]
[1768894033612,4.36823727,131.47,131.44,4.3825389]
[1768894035335,4.36823727,131.47,131.44,11.99043852]
[1768894036011,21.04823727,131.48,131.45,4.3825389]
[1768894036211,16.68,131.48,131.45,4.3825389]
[1768894036620,7.92891261,131.49,131.45,4.3825389]
[1768894037016,4.36823727,131.48,131.45,4.3825389]
[1768894041140,7.92891261,131.48,131.45,4.3825389]
[1768894044720,4.36823727,131.48,131.45,4.3825389]
[1768894046036,7.92891261,131.48,131.45,4.3825389]
[1768894047740,4.36823727,131.48,131.45,4.3825389]
[1768894047920,7.92891261,131.48,131.45,4.3825389]
[1768894048836,4.33252616,131.47,131.44,12.02017561]
[1768894049136,4.33252616,131.47,131.44,4.41225212]
[1768894055548,7.8932015,131.47,131.44,4.41225212]
[1768894060635,4.33252616,131.47,131.44,4.41225212]
[1768894060833,7.8932015,131.47,131.44,4.41225212]
[1768894065152,7.8932015,131.47,131.44,12.02021991]
[1768894066053,7.8932015,131.47,131.44,4.41225212]
[1768894066354,7.8268988,131.48,131.44,4.41225212]
[1768894066954,7.82570757,131.48,131.44,4.41225212]
[1768894068554,4.26622346,131.49,131.44,4.41225212]
[1768894068738,4.26622346,131.49,131.45,4.18649998]
[1768894068938,7.82570757,131.49,131.45,4.18649998]
[1768894069560,16.66,131.5,131.46,4.18649998]
[1768894069750,20.92622346,131.5,131.46,4.18649998]
[1768894069956,20.92622346,131.5,131.47,4.18649998]
[1768894070158,24.48570757,131.5,131.47,4.18649998]
[1768894070348,4.26622346,131.5,131.47,4.18649998]
[1768894070553,3.55948411,131.5,131.48,4.18649998]
[1768894071065,4.26622346,131.51,131.48,4.18649998]
[1768894071243,3.55948411,131.5,131.48,4.18649998]
[1768894072066,4.26622346,131.51,131.48,4.18649998]
[1768894072250,3.55948411,131.5,131.48,4.18649998]
[1768894073638,7.82570757,131.51,131.48,4.18649998]
[1768894074539,4.42903097,131.53,131.48,4.18649998]
[1768894074746,7.98851508,131.53,131.49,4.06284527]
[1768894075741,7.98851508,131.52,131.49,4.06284527]
[1768894076263,3.55948411,131.5,131.49,4.06284527]
[1768894076462,3.55948411,131.51,131.49,4.06284527]
[1768894077365,7.98851508,131.52,131.49,4.06284527]
[1768894079258,4.42903097,131.51,131.48,4.06284527]
[1768894079450,7.98851508,131.52,131.48,4.06284527]
[1768894079960,3.55948411,131.51,131.48,4.06284527]
[1768894080456,4.42903097,131.52,131.48,4.06284527]
[1768894080651,7.98851508,131.52,131.48,4.06284527]
[1768894081560,4.42903097,131.52,131.48,4.06284527]
[1768894081753,7.98851508,131.52,131.48,4.06284527]
[1768894082464,7.98851508,131.51,131.48,4.06284527]
[1768894082669,7.93297112,131.51,131.48,4.06284527]
[1768894082969,22.00408856,131.54,131.5,4.06284527]
[1768894083167,25.56357267,131.54,131.5,4.06284527]
[1768894083363,3.55948411,131.53,131.5,4.06284527]
[1768894084656,7.98851508,131.53,131.5,4.06284527]
[1768894085057,3.55948411,131.53,131.5,4.06284527]
[1768894086274,7.98851508,131.53,131.5,4.06284527]
[1768894086873,3.55948411,131.52,131.5,4.06284527]
[1768894087170,3.55948411,131.52,131.48,4.06284527]
[1768894087171,7.98851508,131.52,131.48,4.06284527]
[1768894087476,4.42903097,131.52,131.48,4.06284527]
[1768894087967,7.98851508,131.52,131.48,4.06284527]
[1768894089172,4.42903097,131.52,131.48,4.06284527]
[1768894089353,7.98851508,131.52,131.48,4.06284527]
[1768894090973,7.98851508,131.53,131.48,4.06284527]
[1768894091363,4.42903097,131.53,131.48,4.06284527]
[1768894091681,7.98851508,131.53,131.48,4.06284527]
[1768894092171,4.42903097,131.53,131.48,4.06284527]
[1768894092378,7.98851508,131.53,131.49,4.06284527]
[1768894092753,3.55948411,131.52,131.49,4.06284527]
[1768894095779,7.98851508,131.52,131.49,4.06284527]
[1768894095979,7.98851508,131.5,131.47,4.06284527]
[1768894096177,3.55948411,131.49,131.47,4.06284527]
[1768894096713,7.98851508,131.5,131.47,4.06284527]
[1768894097673,4.42903097,131.5,131.47,4.06284527]
[1768894097868,7.98851508,131.5,131.47,4.06284527]
[1768894098067,3.55948411,131.49,131.47,4.06284527]
[1768894100181,7.98851508,131.5,131.47,4.06284527]
[1768894102893,4.42903097,131.5,131.47,4.06284527]
[1768894103066,7.98851508,131.5,131.47,4.06284527]
[1768894104376,3.55948411,131.5,131.47,4.06284527]
[1768894104689,7.84126458,131.5,131.47,4.06284527]
[1768894106390,4.28178047,131.5,131.47,4.06284527]
[1768894106690,7.84126458,131.5,131.47,4.06284527]
[1768894107783,4.28178047,131.5,131.47,4.06284527]
[1768894109485,7.84126458,131.5,131.47,4.06284527]
[1768894109698,4.28178047,131.5,131.47,4.06284527]
[1768894109898,7.84126458,131.5,131.47,4.06284527]
[1768894110081,4.28178047,131.5,131.47,4.06284527]
[1768894110280,7.84126458,131.5,131.47,4.06284527]
[1768894110806,4.28178047,131.5,131.47,4.06284527]
[1768894113783,7.84126458,131.5,131.47,4.06284527]
[1768894114579,102.1,131.53,131.47,4.06284527]
[1768894114580,3.55948411,131.51,131.47,4.06284527]
[1768894114786,7.84126458,131.5,131.47,4.06284527]
[1768894114988,4.28178047,131.49,131.47,4.06284527]
[1768894115176,7.84126458,131.5,131.47,4.06284527]
[1768894116796,7.34126458,131.5,131.47,4.06284527]
[1768894117489,7.84126458,131.5,131.47,4.06284527]
[1768894118393,4.28178047,131.5,131.47,4.06284527]
[1768894118592,7.84126458,131.5,131.47,4.06284527]
[1768894119571,4.28178047,131.5,131.47,4.06284527]
[1768894119767,7.84126458,131.5,131.47,4.06284527]
[1768894120897,3.55948411,131.48,131.46,4.34876559]
[1768894122383,16.66,131.51,131.46,4.34876559]
[1768894122582,3.55948411,131.5,131.46,4.34876559]
[1768894122800,6.07176615,131.5,131.46,4.34876559]
[1768894124706,3.55948411,131.49,131.46,4.34876559]
[1768894125908,2.51228204,131.5,131.46,4.34876559]
[1768894126110,3.55948411,131.49,131.46,4.34876559]
[1768894126312,2.51228204,131.5,131.46,4.34876559]
[1768894126515,2.51228204,131.5,131.47,4.0990607]
[1768894126684,6.07176615,131.5,131.47,4.0990607]
[1768894126884,6.07019514,131.5,131.47,4.0990607]
[1768894127202,4.22178046,131.48,131.47,4.0990607]
[1768894131616,4.22178046,131.48,131.45,4.0990607]
[1768894131803,2.51228204,131.47,131.44,4.0990607]
[1768894132007,6.07019514,131.47,131.44,4.0990607]
[1768894132512,10.2919756,131.48,131.44,4.0990607]
[1768894133583,6.7340625,131.48,131.44,4.0990607]
[1768894133786,10.2919756,131.48,131.44,4.0990607]
[1768894134611,6.7340625,131.48,131.44,4.0990607]
[1768894134913,10.2919756,131.48,131.44,4.0990607]
[1768894136908,4.22178046,131.48,131.45,4.21672108]
[1768894137409,10.2919756,131.48,131.45,4.21672108]
[1768894138214,6.7340625,131.48,131.45,4.21672108]
[1768894138401,10.2919756,131.48,131.45,4.21672108]
[1768894139500,6.07019514,131.47,131.44,4.21672108]
[1768894140101,3.5579131,131.46,131.44,4.21672108]
[1768894140308,3.49791309,131.46,131.44,4.21672108]
[1768894142011,16.66,131.48,131.42,7.60908578]
[1768894142012,6.07019514,131.45,131.42,4.21672108]
[1768894142613,10.2919756,131.45,131.42,4.21672108]
[1768894143208,6.07019514,131.44,131.4,4.21672108]
[1768894144407,6.07019514,131.43,131.4,4.21672108]
[1768894144998,24.26767649,131.45,131.4,4.21672108]
[1768894144999,2.51228204,131.44,131.4,4.21672108]
[1768894145401,3.5579131,131.43,131.4,4.21672108]
[1768894146203,7.77969356,131.43,131.4,4.21672108]
[1768894146718,4.22178046,131.43,131.4,4.21672108]
[1768894146898,7.77969356,131.43,131.4,4.21672108]
[1768894147802,4.22178046,131.43,131.4,4.21672108]
[1768894152516,4.22178046,131.43,131.41,4.21672108]
[1768894157022,10.2919756,131.43,131.4,4.21672108]
[1768894158621,6.7340625,131.43,131.4,4.21672108]
[1768894158818,10.2919756,131.43,131.4,4.21672108]
[1768894159320,7.77969356,131.43,131.4,4.21672108]
[1768894161107,3.5579131,131.43,131.4,4.21672108]
[1768894163110,4.22178046,131.42,131.4,4.21672108]
[1768894164330,105.6579131,131.46,131.42,4.39259818]
[1768894164718,4.12397533,131.45,131.42,4.39259818]
[1768894166315,4.12397533,131.47,131.43,4.39259818]
[1768894166514,4.12397533,131.46,131.43,4.39259818]
[1768894168235,7.68188843,131.46,131.42,12.0015627]
[1768894168436,4.12397533,131.45,131.42,12.0015627]
[1768894168944,4.12397533,131.45,131.43,4.39259818]
[1768894169345,7.68188843,131.46,131.43,4.39259818]
[1768894169836,4.12397533,131.44,131.41,4.39259818]
[1768894170541,7.68188843,131.44,131.41,4.39259818]
[1768894170743,4.12397533,131.43,131.41,4.39259818]
[1768894170921,7.68188843,131.44,131.41,4.39259818]
[1768894172752,4.12397533,131.49,131.42,4.39259818]
[1768894173038,4.12397533,131.46,131.43,4.39259818]
[1768894177431,7.68188843,131.46,131.43,4.39259818]
[1768894179344,4.12397533,131.45,131.39,46.16344463]
[1768894179543,4.12397533,131.45,131.4,4.39259818]
[1768894179544,4.12397533,131.44,131.4,4.39259818]
[1768894179842,4.12397533,131.43,131.4,4.39259818]
[1768894182336,7.68188843,131.44,131.4,4.39259818]
[1768894183432,3.5579131,131.43,131.4,4.39259818]
[1768894183750,7.68188843,131.44,131.4,4.39259818]
[1768894187347,4.12397533,131.44,131.4,12.00293619]
[1768894187555,7.68188843,131.44,131.41,4.23842463]
[1768894188851,7.68540111,131.44,131.41,4.23842463]
[1768894189652,4.12397533,131.44,131.41,4.23842463]
[1768894189851,7.68540111,131.44,131.41,4.23842463]
[1768894190863,4.12397533,131.44,131.41,4.23842463]
[1768894191158,7.68540111,131.44,131.41,4.23842463]
[1768894191554,4.12397533,131.44,131.41,4.23842463]
[1768894191763,7.68540111,131.44,131.41,4.23842463]
[1768894192454,4.24904026,131.45,131.42,4.23842463]
[1768894193671,4.23050579,131.45,131.42,4.23842463]
[1768894194460,24.47193157,131.46,131.42,4.23842463]
[1768894195650,4.23050579,131.45,131.42,4.23842463]
[1768894196457,20.91050579,131.46,131.42,4.23842463]
[1768894196658,7.79193157,131.45,131.42,4.23842463]
[1768894197360,4.23050579,131.45,131.42,4.23842463]
[1768894197540,3.56142578,131.45,131.42,4.23842463]
[1768894197739,3.56142578,131.45,131.43,4.33341086]
[1768894198454,4.23050579,131.46,131.43,4.33341086]
[1768894198661,3.56142578,131.46,131.43,4.33341086]
[1768894198957,7.79193157,131.47,131.43,4.33341086]
[1768894199748,4.23050579,131.47,131.44,4.33341086]
[1768894199955,4.23050579,131.46,131.44,4.33341086]
[1768894200962,7.79193157,131.47,131.44,4.33341086]
[1768894201954,3.56142578,131.47,131.45,4.33341086]
[1768894202462,7.79193157,131.47,131.45,4.33341086]
[1768894202650,7.79193157,131.47,131.44,4.33341086]
[1768894202959,16.68,131.48,131.45,4.33341086]
[1768894202960,4.23050579,131.48,131.45,4.33341086]
[1768894203342,7.79193157,131.48,131.45,4.33341086]
[1768894204066,4.23050579,131.46,131.43,11.94181609]
[1768894204245,3.56142578,131.45,131.43,4.33341086]
[1768894205656,4.23050579,131.46,131.41,4.33341086]
[1768894205657,7.79193157,131.44,131.41,4.33341086]
[1768894205856,3.56142578,131.43,131.41,4.33341086]
[1768894206656,4.23050579,131.41,131.37,4.33341086]
[1768894206966,3.56142578,131.39,131.37,4.33341086]
[1768894207340,24.47193157,131.41,131.37,4.33341086]
[1768894208665,3.56142578,131.4,131.37,4.33341086]
[1768894209960,7.79193157,131.4,131.37,4.33341086]
[1768894214750,7.79193157,131.4,131.37,11.94546087]
[1768894214958,4.23050579,131.4,131.37,11.94546087]
[1768894215160,7.79193157,131.4,131.37,11.94546087]
[1768894216798,7.79193157,131.39,131.36,11.9459066]
[1768894216973,7.79193157,131.39,131.36,4.33341086]
[1768894217176,7.79193157,131.38,131.35,4.33341086]
[1768894217350,7.79193157,131.37,131.34,4.53341086]
[1768894217663,7.79193157,131.35,131.32,0.2]
[1768894217843,24.47193157,131.35,131.32,4.53341086]
[1768894218962,4.23050579,131.33,131.32,0.2]
[1768894219162,7.79193157,131.33,131.3,4.33341086]
[1768894219985,7.73193156,131.33,131.3,4.33341086]
[1768894220288,4.17050578,131.33,131.3,4.33341086]
[1768894220561,7.73193156,131.33,131.3,4.33341086]
[1768894220770,3.56142578,131.33,131.29,12.04988197]
[1768894221357,3.56142578,131.33,131.3,4.33341086]
[1768894221851,7.79193157,131.33,131.3,4.33341086]
[1768894222067,3.56142578,131.34,131.31,4.33341086]
[1768894222280,24.47193157,131.35,131.31,4.33341086]
[1768894223079,10.09302227,131.44,131.32,4.30509096]
[1768894223080,4.44323286,131.39,131.32,4.30509096]
[1768894223277,24.68465864,131.37,131.32,4.30509096]
[1768894223456,4.44323286,131.36,131.32,4.30509096]
[1768894224071,16.68,131.37,131.33,7.86651674]
[1768894224254,16.68,131.37,131.34,4.30509096]
[1768894224973,21.12323286,131.37,131.34,4.30509096]
[1768894227561,21.12323286,131.37,131.34,11.91888854]
[1768894229579,4.44323286,131.37,131.34,11.91888854]
[1768894230393,21.12323286,131.39,131.35,4.30509096]
[1768894230560,16.68,131.39,131.35,4.30509096]
[1768894230762,16.68,131.39,131.36,4.30509096]
[1768894231288,24.36517278,131.44,131.39,4.30509096]
[1768894231289,4.44323286,131.43,131.39,4.30509096]
[1768894231492,4.44323286,131.42,131.39,4.30509096]
[1768894233587,8.00465864,131.42,131.37,4.30509096]
[1768894233766,4.44323286,131.39,131.35,15.47949901]
[1768894234076,4.44323286,131.39,131.35,11.91807323]
[1768894234483,4.44323286,131.39,131.36,4.30509096]
[1768894234786,8.00465864,131.39,131.34,11.91889327]
[1768894234986,4.44323286,131.38,131.34,4.30509096]
[1768894236482,4.44323286,131.37,131.34,4.30509096]
[1768894237164,4.44323286,131.38,131.34,4.30509096]
[1768894238368,4.44323286,131.37,131.34,4.30509096]
[1768894244476,4.44323286,131.37,131.33,11.83544578]
[1768894248382,4.30703392,131.36,131.32,11.83586861]
[1768894249079,4.30703392,131.36,131.33,4.22110302]
[1768894249670,20.98703392,131.37,131.34,4.22110302]
[1768894252586,4.30703392,131.36,131.33,4.22110302]
[1768894253099,16.68,131.37,131.33,4.22110302]
[1768894253507,20.91255022,131.37,131.33,4.22110302]
[1768894254505,4.23255022,131.36,131.33,4.22110302]
[1768894256400,4.23255022,131.35,131.32,4.48603584]
[1768894257605,4.23255022,131.36,131.32,4.48603584]
[1768894260511,4.23255022,131.35,131.32,4.48603584]
[1768894263399,3.56533757,131.36,131.29,22.70669617]
[1768894263400,4.23255022,131.33,131.3,4.48603584]
[1768894263599,7.61271195,131.36,131.29,0.1]
[1768894263600,7.79788779,131.32,131.29,0.1]
[1768894263809,4.23255022,131.31,131.29,0.1]
[1768894265015,4.23255022,131.31,131.27,0.1]
[1768894265016,7.79788779,131.3,131.27,0.1]
[1768894265211,4.1725502,131.3,131.27,0.1]
[1768894265416,3.56533757,131.3,131.27,0.1]
[1768894266918,3.56533757,131.29,131.27,0.1]
[1768894267225,4.23255022,131.29,131.27,0.1]
[1768894267398,7.79788779,131.29,131.27,0.1]
[1768894268722,4.23255022,131.28,131.27,0.1]
[1768894269226,3.56533757,131.29,131.27,0.1]
[1768894269227,7.79788779,131.29,131.27,0.1]
[1768894269723,4.23255022,131.28,131.26,0.1]
[1768894270125,24.47788779,131.28,131.26,0.1]
[1768894273321,4.23255022,131.27,131.24,4.48603584]
[1768894275029,20.91255022,131.28,131.24,4.48603584]
[1768894275409,24.47788779,131.28,131.24,4.48603584]
[1768894275930,4.23255022,131.27,131.24,4.48603584]
[1768894276713,7.79788779,131.27,131.24,4.48603584]
[1768894279134,4.23255022,131.27,131.24,4.48603584]
[1768894279633,24.47788779,131.28,131.24,4.48603584]
[1768894279832,3.56533757,131.27,131.24,4.48603584]
[1768894281230,20.91255022,131.28,131.24,4.48603584]
[1768894281640,102.1,131.33,131.25,4.48603584]
[1768894281817,102.1,131.33,131.24,7.6192543]
[1768894281818,20.26533757,131.33,131.28,4.48603584]
[1768894282329,4.23255022,131.32,131.28,4.48603584]
[1768894284359,24.31449136,131.33,131.28,4.48603584]
[1768894284360,16.7,131.33,131.29,4.10728263]
[1768894284708,4.39360587,131.36,131.31,4.10728263]
[1768894284908,28.70639031,131.36,131.31,4.10728263]
[1768894285329,4.39360587,131.35,131.31,4.10728263]
[1768894286039,4.39360587,131.34,131.31,4.10728263]
[1768894290041,4.39360587,131.35,131.31,4.10728263]
[1768894290540,4.39360587,131.35,131.29,11.18183216]
[1768894290723,4.39360587,131.34,131.3,4.10728263]
[1768894291918,4.39360587,131.3,131.27,4.10728263]
[1768894292123,4.39360587,131.32,131.27,4.10728263]
[1768894292347,4.39360587,131.31,131.27,4.10728263]
[1768894293741,4.39360587,131.31,131.28,4.10728263]
[1768894294263,4.39360587,131.32,131.28,4.10728263]
[1768894300452,21.07360587,131.32,131.28,4.10728263]
[1768894300836,4.39360587,131.32,131.28,4.10728263]
[1768894301049,21.07360587,131.32,131.28,4.10728263]
[1768894301356,16.68,131.32,131.29,4.10728263]
[1768894303677,16.68,131.32,131.3,4.21854696]
[1768894303876,4.27589877,131.34,131.3,4.21854696]
[1768894304052,102.1,131.35,131.31,4.21854696]
[1768894304253,118.78,131.35,131.31,4.21854696]
[1768894304867,118.78,131.35,131.32,4.21854696]
[1768894305064,123.05589877,131.35,131.32,4.21854696]
[1768894309167,118.78,131.35,131.33,4.21854696]
[1768894309343,4.27589877,131.37,131.34,4.21854696]
[1768894309542,20.95589877,131.37,131.34,4.21854696]
[1768894310169,16.68,131.37,131.34,4.21854696]
[1768894311778,4.27589877,131.39,131.34,4.21854696]
[1768894311949,4.27589877,131.39,131.35,4.21854696]
[1768894314964,24.48686377,131.4,131.35,4.21854696]
[1768894315168,24.48686377,131.4,131.36,4.15776173]
[1768894315169,16.68,131.4,131.36,4.15776173]
[1768894315376,20.92262557,131.4,131.36,4.15776173]
[1768894315672,28.53298941,131.4,131.36,4.15776173]
[1768894315869,4.24262557,131.39,131.36,4.15776173]
[1768894320871,11.85362684,131.39,131.36,4.15776173]
[1768894321676,4.24262557,131.38,131.35,4.15776173]
[1768894321902,4.24262557,131.38,131.34,4.15776173]
[1768894327179,11.85426101,131.38,131.34,4.15776173]
[1768894327862,4.24262557,131.36,131.32,4.15776173]
[1768894328071,4.24262557,131.35,131.32,4.15776173]
[1768894328978,4.24262557,131.35,131.3,11.18025664]
[1768894328979,4.24262557,131.34,131.3,4.15776173]
[1768894329183,4.24262557,131.32,131.28,4.15776173]
[1768894329409,3.5642382,131.33,131.29,4.15776173]
[1768894329410,4.24262557,131.33,131.29,4.15776173]
[1768894329863,7.80686377,131.33,131.29,4.15776173]
[1768894330978,16.68,131.34,131.29,4.15776173]
[1768894331169,4.24262557,131.35,131.31,4.15776173]
[1768894331688,4.24262557,131.35,131.32,4.15776173]
[1768894331858,16.68,131.36,131.32,4.15776173]
[1768894332059,4.24262557,131.37,131.34,4.15776173]
[1768894332764,11.85475923,131.37,131.34,4.15776173]
[1768894332970,4.24262557,131.37,131.34,4.15776173]
[1768894334880,16.68,131.38,131.34,4.15776173]
[1768894335180,16.68,131.38,131.35,4.15776173]
[1768894335679,24.29156233,131.38,131.35,4.15776173]
[1768894336070,7.61156233,131.38,131.35,4.15776173]
[1768894336786,4.24262557,131.39,131.35,4.15776173]
[1768894337496,11.85384066,131.39,131.35,4.15776173]
[1768894341195,11.85384066,131.39,131.36,4.15776173]
[1768894342495,4.24262557,131.38,131.35,3.5642382]
[1768894342663,4.24262557,131.38,131.35,4.15776173]
[1768894343381,4.102054,131.39,131.35,4.15776173]
[1768894343580,4.102054,131.39,131.36,4.44719736]
[1768894345895,11.71324399,131.39,131.36,4.44719736]
[1768894347596,7.61118999,131.39,131.36,4.44719736]
[1768894348095,7.61118999,131.39,131.36,4.30850116]
[1768894349500,15.27748219,131.39,131.36,4.30850116]
[1768894349678,7.61118999,131.39,131.36,4.30850116]
[1768894352397,15.27748219,131.39,131.36,4.30850116]
[1768894353294,4.102054,131.37,131.34,4.44719736]
[1768894353472,4.102054,131.36,131.32,4.44719736]
[1768894353678,7.6662922,131.36,131.32,4.44719736]
[1768894353894,4.102054,131.36,131.32,4.44719736]
[1768894354593,20.782054,131.38,131.34,4.44719736]
[1768894355592,4.102054,131.36,131.33,4.44719736]
[1768894356388,3.5642382,131.36,131.33,4.44719736]
[1768894356884,3.5642382,131.36,131.3,4.44719736]
[1768894356885,7.6662922,131.34,131.3,4.44719736]
[1768894357078,3.5642382,131.33,131.3,4.44719736]
[1768894357582,4.102054,131.34,131.3,4.44719736]
[1768894357781,3.5642382,131.33,131.3,4.44719736]
[1768894358100,4.102054,131.32,131.29,4.44719736]
[1768894358283,3.5642382,131.32,131.29,4.44719736]
[1768894358881,3.5642382,131.33,131.29,4.44719736]
[1768894359210,11.17858578,131.34,131.29,4.44719736]
[1768894359676,15.28063978,131.34,131.29,4.44719736]
[1768894360077,16.68,131.35,131.24,9.31650052]
[1768894360078,20.782054,131.35,131.31,4.44719736]
[1768894360483,16.68,131.35,131.31,4.44719736]
[1768894361382,7.6662922,131.36,131.31,4.44719736]
[1768894361586,4.102054,131.36,131.31,4.44719736]
[1768894361817,7.6662922,131.36,131.31,4.44719736]
[1768894362816,15.2793647,131.36,131.31,4.44719736]
[1768894362988,4.13380289,131.35,131.31,4.44719736]
[1768894366311,11.7471064,131.35,131.31,4.44719736]
[1768894367304,7.61330351,131.35,131.31,4.44719736]
[1768894369011,35.710685,131.37,131.33,4.32353392]
[1768894369012,20.81380289,131.37,131.33,4.32353392]
[1768894369218,16.68,131.37,131.33,4.27072126]
[1768894369395,20.81380289,131.37,131.33,4.27072126]
[1768894369597,4.13380289,131.37,131.33,4.27072126]
[1768894370287,102.1,131.38,131.33,4.27072126]
[1768894370528,11.74379779,131.41,131.35,3.5642382]
[1768894370688,15.30803599,131.41,131.36,3.5642382]
[1768894370891,15.30803599,131.41,131.34,7.61372037]
[1768894371089,4.13380289,131.41,131.37,4.32353392]
[1768894371324,4.13380289,131.41,131.37,4.22486715]
[1768894372316,4.13380289,131.4,131.37,4.22486715]
[1768894375711,2.27285368,131.41,131.37,4.22486715]
[1768894376220,2.27285368,131.41,131.38,4.18883737]
[1768894377402,16.68,131.42,131.38,7.75184461]
[1768894377610,16.68,131.42,131.39,4.18883737]
[1768894378211,16.68,131.42,131.37,7.61208301]
[1768894378212,20.9295741,131.42,131.37,7.61208301]
[1768894378420,20.9295741,131.42,131.38,3.56300724]
[1768894379102,4.2495741,131.41,131.32,70.68389668]
[1768894379302,4.2495741,131.41,131.37,3.56300724]
[1768894379514,4.2495741,131.41,131.32,132.18389668]
[1768894379716,4.2495741,131.41,131.37,3.56300724]
[1768894380220,4.2495741,131.41,131.38,4.18883737]
[1768894380425,16.68,131.42,131.38,4.18883737]
[1768894380603,20.9295741,131.42,131.38,4.18883737]
[1768894381304,4.2495741,131.41,131.37,15.36361885]
[1768894381909,4.2495741,131.41,131.38,4.18883737]
[1768894385221,4.2495741,131.41,131.38,7.75184461]
[1768894385414,4.2495741,131.43,131.39,4.18883737]
[1768894387030,4.2495741,131.42,131.39,4.18883737]
[1768894387812,11.8589117,131.42,131.39,4.18883737]
[1768894388718,4.2495741,131.42,131.39,4.18883737]
[1768894391310,4.2495741,131.4,131.35,4.18883737]
[1768894391633,4.2495741,131.39,131.35,4.18883737]
[1768894391968,4.2495741,131.39,131.36,4.18883737]
[1768894394750,4.2495741,131.38,131.35,4.18883737]
[1768894395248,11.86067177,131.39,131.35,4.18883737]
[1768894396116,3.56300724,131.36,131.29,7.6164508]
[1768894396322,4.2495741,131.35,131.31,4.18883737]
[1768894396542,4.2495741,131.34,131.29,4.18883737]
[1768894396851,4.2495741,131.33,131.3,4.18883737]
[1768894397219,4.2495741,131.34,131.3,4.18883737]
[1768894397421,4.2495741,131.34,131.3,7.75184461]
[1768894397936,4.2495741,131.34,131.3,4.18883737]
[1768894400243,4.2495741,131.38,131.33,7.75184461]
[1768894400419,4.2495741,131.38,131.34,4.18883737]
[1768894401026,4.2495741,131.4,131.36,4.18883737]
[1768894401231,4.2495741,131.4,131.36,4.09022556]
[1768894401843,4.2495741,131.4,131.36,7.6532328]
[1768894402348,4.2495741,131.4,131.36,3.56300724]
[1768894403339,4.2495741,131.4,131.36,7.89251256]
[1768894403745,4.2495741,131.4,131.36,4.32950532]
[1768894403915,4.2495741,131.4,131.36,7.89251256]
[1768894405235,4.1244327,131.4,131.37,7.89251256]
[1768894405535,4.1244327,131.4,131.37,7.74329302]
[1768894405725,4.1244327,131.4,131.37,4.18028578]
[1768894406642,4.1244327,131.42,131.32,5.9565132]
[1768894406835,4.1244327,131.42,131.39,3.56300724]
[1768894407432,4.1244327,131.42,131.39,7.89251256]
[1768894407634,4.1244327,131.42,131.39,4.32950532]
[1768894407847,4.1244327,131.42,131.39,7.89251256]
[1768894408324,4.1244327,131.42,131.38,4.32950532]
[1768894408749,4.1244327,131.42,131.38,7.89251256]
[1768894409527,4.1244327,131.42,131.38,4.32950532]
[1768894409749,4.1244327,131.42,131.38,7.89251256]
[1768894410043,4.1244327,131.42,131.38,4.32950532]
[1768894410254,4.1244327,131.42,131.38,7.89251256]